fUSD/lending_fUSD_20240215
["ID","MTS","AMOUNT","RATE_DAILY","PERIOD"]
[314083761,1707965438598,-500.0,0.00039999,7]
[314083764,1707965438608,-500.0,0.00039999,7]
[314083766,1707965438620,-500.0,0.00039999,7]
[314083768,1707965438631,-625.93804398,0.00039999,7]
[314083770,1707965438641,-500.0,0.00039999,7]
[314083772,1707965438652,-500.0,0.00039999,7]
[314083775,1707965438663,-500.0,0.00039999,7]
[314083777,1707965438672,-500.0,0.00039999,7]
[314083779,1707965438682,-500.0,0.00039999,7]
[314083781,1707965438693,-491.41537298,0.00039999,7]
[314083783,1707965438703,-500.0,0.00039999,7]
[314083785,1707965438713,-500.0,0.00039999,7]
[314083788,1707965438724,-450.97684786,0.00039999,7]
[314083790,1707965438735,-19083.76192344,0.0004,3]
[314083792,1707965438749,-1332.08172666,0.0004,3]
[314083795,1707965438765,-1150.0,0.0004,3]
[314083955,1707965440577,-8422.63590517,0.00032743,7]
[314083957,1707965440588,-430.5823,0.00039879,7]
[314083959,1707965440600,-311.59823,0.000399,2]
[314083961,1707965440610,-100191.0893176,0.0004,3]
[314083977,1707965440745,-284.67885688,0.0004,3]
[314083979,1707965440758,-14005.5561528,0.0004,3]
[314084198,1707965443010,-584680.07154987,0.0004,3]
[314084199,1707965443065,-1555.62663557,0.0004,3]
[314084204,1707965443124,-6048.2149457,0.0004,3]
[314084206,1707965443136,-2456.32167956,0.0004,3]
[314084216,1707965443220,-340.98898137,0.0004,3]
[314084219,1707965443232,-2641.25349955,0.0004,3]
[314084221,1707965443245,-5944.56851128,0.0004,3]
[314084224,1707965443258,-2204.15050934,0.0004,3]
[314084370,1707965445914,-1867.62803367,0.0004,3]
[314084371,1707965446026,-15628.64799392,0.0004,3]
[314084372,1707965446039,-34084.56910018,0.0004,3]
[314084398,1707965645432,1057.5745183,0.0002,2]
[314084406,1707966125927,-2500.0,0.000229,2]
[314084407,1707966125949,-1883.378,0.000229,2]
[314084408,1707966125971,-150.0,0.00022999,2]
[314084409,1707966125994,-95466.622,0.00023,2]
[314084410,1707966126518,-100000.0,0.00023,2]
[314084411,1707966127103,-100000.0,0.00023,2]
[314084412,1707966127655,-100000.0,0.00023,2]
[314084413,1707966128352,-100000.0,0.00023,2]
[314084414,1707966128908,-100000.0,0.00023,2]
[314084415,1707966129665,-100000.0,0.00023,2]
[314084416,1707966131182,-279.26563627,0.000229,2]
[314084417,1707966131207,-99720.73436373,0.00023,2]
[314084418,1707966135661,-100000.0,0.00023,2]
[314084419,1707966136504,-100000.0,0.00023,2]
[314084420,1707966232814,-2557.59739521,0.0002299,2]
[314084421,1707966232836,-150.0,0.00022999,2]
[314084422,1707966232857,-198286.50615222,0.00023,2]
[314084423,1707966299385,46640.622,0.000229,2]
[314084424,1707966329045,983.2815,0.000229,2]
[314084440,1707966632842,-424.42649289,0.0002479,2]
[314084441,1707966633177,-1277.1140619,0.0002479,2]
[314084451,1707966638274,-2017.94259798,0.0002479,2]
[314084452,1707966638283,-156.66385257,0.00024989,2]
[314084453,1707966638293,-150.0,0.00025089,2]
[314084454,1707966638303,-863.08945319,0.0002509,2]
[314084455,1707966638316,-10629.56722483,0.0002509,2]
[314084456,1707966638325,-370.30867521,0.00025723,2]
[314084457,1707966638337,-349.52132479,0.00025723,2]
[314084458,1707966638347,-2381.57892521,0.000263,2]
[314084459,1707966638444,-8415.98707455,0.000263,2]
[314084461,1707966638454,-3719.48315268,0.00026327,2]
[314084463,1707966638463,-4651.46,0.00026634,2]
[314084465,1707966638472,-250.0,0.00026646,2]
[314084467,1707966638482,-200.0,0.00026648,2]
[314084469,1707966638491,-5140.96,0.0002675,2]
[314084471,1707966638501,-1456.66554983,0.000272,2]
[314084473,1707966638510,-179.43,0.00027205,2]
[314084475,1707966638519,-7700.32,0.00027247,2]
[314084477,1707966638528,-499.99,0.00027247,2]
[314084479,1707966638537,-2566.85,0.00027247,2]
[314084481,1707966638546,-582.79,0.00027247,2]
[314084483,1707966638555,-299.99,0.00027247,12]
[314084485,1707966638564,-2483.63,0.00027247,2]
[314084487,1707966638574,-10000.0,0.00027253,2]
[314084489,1707966638583,-1852.42,0.00027267,2]
[314084491,1707966638593,-150.0,0.00027301,2]
[314084493,1707966638602,-742.1,0.00027311,2]
[314084495,1707966638611,-2812.76,0.00027333,2]
[314084497,1707966638620,-207.88,0.00027353,2]
[314084499,1707966638630,-1341.37,0.00027353,2]
[314084501,1707966638639,-165.59,0.00027356,2]
[314084503,1707966638649,-494.84,0.00027379,2]
[314084505,1707966638658,-548.72,0.00027397,2]
[314084507,1707966638667,-464.0,0.000274,7]
[314084509,1707966638677,-23900.0,0.00027462,2]
[314084511,1707966638687,-2705.0,0.00027462,2]
[314084513,1707966638697,-153.99,0.00027494,2]
[314084515,1707966638707,-1341.37,0.00027497,2]
[314084517,1707966638717,-153.99,0.00027573,2]
[314084519,1707966638726,-210.0,0.00027598,2]
[314084521,1707966638736,-26955.72,0.00027611,2]
[314084523,1707966638745,-500.0,0.00027611,2]
[314084525,1707966638755,-509.05,0.00027641,2]
[314084527,1707966638764,-164.54,0.00027641,2]
[314084529,1707966638774,-1341.37,0.00027641,2]
[314084531,1707966638783,-153.99,0.00027653,2]
[314084533,1707966638792,-153.99,0.00027733,2]
[314084535,1707966638801,-250.0,0.00027735,2]
[314084537,1707966638810,-26955.72,0.00027771,2]
[314084539,1707966638820,-1341.37,0.00027785,2]
[314084542,1707966638831,-153.99,0.00027812,2]
[314084544,1707966638842,-3719.48315268,0.00027865,2]
[314084546,1707966638851,-205.0,0.00027892,2]
[314084548,1707966638863,-153.99,0.00027892,2]
[314084550,1707966638872,-2000.0,0.00027926,2]
[314084552,1707966638882,-1341.37,0.00027929,2]
[314084554,1707966638891,-26955.72,0.0002793,2]
[314084556,1707966638901,-153.99,0.00027971,2]
[314084558,1707966638912,-300.0,0.00027972,2]
[314084560,1707966638921,-719.83,0.00027987,2]
[314084562,1707966638931,-200.3192966,0.00028,2]
[314084564,1707966638940,-250.0,0.00028016,2]
[314084566,1707966638949,-153.99,0.00028051,2]
[314084569,1707966638966,-1341.37,0.00028073,2]
[314084571,1707966638979,-26955.72,0.0002809,2]
[314084573,1707966638989,-532.74,0.00028093,2]
[314084576,1707966638999,-200.0,0.00028104,2]
[314084597,1707966639008,-153.99,0.00028131,2]
[314084599,1707966639196,-1047.62,0.00028164,2]
[314084601,1707966639206,-153.99,0.0002821,2]
[314084603,1707966639215,-1341.37,0.00028217,2]
[314084605,1707966639224,-26955.72,0.00028249,2]
[314084607,1707966639233,-153.99,0.0002829,2]
[314084609,1707966639242,-1341.37,0.00028361,2]
[314084611,1707966639252,-153.99,0.00028369,2]
[314084613,1707966639261,-5140.96,0.00028394,2]
[314084615,1707966639270,-26955.72,0.00028409,2]
[314084617,1707966639279,-153.99,0.00028449,2]
[314084619,1707966639288,-1341.37,0.00028505,2]
[314084621,1707966639298,-153.99,0.00028529,2]
[314084623,1707966639307,-26955.72,0.00028568,2]
[314084625,1707966639319,-153.99,0.00028608,2]
[314084627,1707966639328,-1341.37,0.00028649,2]
[314084629,1707966639338,-167.35,0.00028667,2]
[314084631,1707966639349,-153.99,0.00028688,2]
[314084633,1707966639360,-26955.72,0.00028728,2]
[314084635,1707966639369,-153.99,0.00028767,2]
[314084637,1707966639378,-1341.37,0.00028793,2]
[314084639,1707966639389,-153.99,0.00028847,2]
[314084641,1707966639399,-26955.72,0.00028887,2]
[314084643,1707966639409,-153.99,0.00028926,2]
[314084645,1707966639418,-1341.37,0.00028937,2]
[314084647,1707966639428,-26955.72,0.00029047,2]
[314084649,1707966639436,-1341.37,0.00029081,2]
[314084651,1707966639446,-1341.37,0.00029225,2]
[314084653,1707966639455,-300.0,0.00029341,2]
[314084655,1707966639464,-1341.37,0.00029369,2]
[314084658,1707966639474,-2975.18,0.00029396,2]
[314084660,1707966639483,-3719.48315268,0.00029402,2]
[314084662,1707966639492,-1341.37,0.00029513,2]
[314084664,1707966639501,-1341.37,0.00029657,2]
[314084666,1707966639510,-1341.37,0.00029801,2]
[314084668,1707966639519,-200.0,0.00029891,2]
[314084670,1707966639529,-1426.92087624,0.000299,2]
[314084672,1707966639538,-1341.37,0.00029944,2]
[314084674,1707966639547,-2445.4839226,0.0003,2]
[314084676,1707966639556,-327.32,0.0003,2]
[314084678,1707966639565,-222.0,0.0003,2]
[314084680,1707966639575,-506.88,0.00030027,2]
[314084682,1707966639584,-5140.96,0.00030038,2]
[314084684,1707966639593,-800.0,0.00030055,2]
[314084686,1707966639602,-2888.01,0.00030062,2]
[314084688,1707966639611,-800.0,0.00030082,2]
[314084690,1707966639623,-1341.37,0.00030088,2]
[314084692,1707966639633,-296.24717762,0.000301,2]
[314084694,1707966639642,-15632.72,0.00030137,2]
[314084696,1707966639652,-154.6,0.00030137,2]
[314084698,1707966639661,-582.0,0.00030179,2]
[314084700,1707966639671,-719.83,0.00030251,2]
[314084702,1707966639680,-293.0,0.00030358,2]
[314084704,1707966639690,-3719.48315268,0.00030939,2]
[314084706,1707966639700,-167.35,0.00031032,2]
[314084708,1707966639709,-2888.01,0.00031126,2]
[314084710,1707966639719,-180.0,0.00031644,2]
[314084712,1707966639728,-169.36,0.00031644,2]
[314084714,1707966639737,-5140.96,0.00031681,2]
[314084716,1707966639747,-582.0,0.00031688,2]
[314084718,1707966639756,-78094.2867648,0.000318,3]
[314084720,1707966639766,-2888.01,0.00032189,2]
[314084722,1707966639775,-3719.48315268,0.00032476,4]
[314084725,1707966639785,-719.83,0.00032515,2]
[314084726,1707966639795,-10412.5715686,0.0003274,4]
[314084729,1707966639805,-5368.72497586,0.0003275,7]
[314084731,1707966639814,-13744.52613812,0.0003275,7]
[314084733,1707966639825,-905.7299248,0.000328,2]
[314084735,1707966639834,-154.58,0.00032877,2]
[314084737,1707966639844,-5206.28578432,0.0003299,4]
[314084738,1707966639853,-7542.81976406,0.00033,2]
[314084741,1707966639863,-155.0,0.00033,2]
[314084743,1707966639873,-1600.66159963,0.00033111,10]
[314084745,1707966639882,-582.0,0.00033197,2]
[314084747,1707966639895,-2888.01,0.00033252,2]
[314084749,1707966639904,-5206.28578432,0.00033315,5]
[314084751,1707966639914,-5140.96,0.00033325,2]
[314084753,1707966639923,-167.35,0.00033398,2]
[314084755,1707966639932,-10412.5715686,0.0003349,5]
[314084757,1707966639941,-16962.0,0.000335,3]
[314084759,1707966639950,-2864.0,0.000335,3]
[314084761,1707966639960,-153.98,0.000335,2]
[314084763,1707966639970,-153.98,0.000335,2]
[314084765,1707966639979,-153.98,0.000335,2]
[314084767,1707966639989,-153.98,0.000335,2]
[314084769,1707966639998,-153.98,0.000335,2]
[314084771,1707966640008,-153.98,0.000335,2]
[314084773,1707966640018,-153.98,0.000335,2]
[314084775,1707966640028,-153.98,0.000335,2]
[314084778,1707966640038,-200.0,0.00033627,2]
[314084780,1707966640047,-154.6,0.0003379,2]
[314084782,1707966640057,-119744.573039,0.0003399,6]
[314084784,1707966640067,-1506.82418513,0.00033997,2]
[314084786,1707966640078,-420418.0,0.00034,2]
[314084788,1707966640086,-3719.48315268,0.00034014,6]
[314084790,1707966640096,-2888.01,0.00034315,2]
[314084792,1707966640105,-155.0,0.0003437,2]
[314084794,1707966640115,-165.33,0.00034443,2]
[314084796,1707966640125,-256.54,0.00034521,2]
[314084798,1707966640134,-582.0,0.00034706,2]
[314084800,1707966640143,-719.83,0.00034779,2]
[314084802,1707966640153,-5268.39812291,0.0003479,2]
[314084804,1707966640162,-5268.39812291,0.0003479,2]
[314084806,1707966640171,-5268.39812291,0.0003479,2]
[314084808,1707966640181,-5268.39812291,0.0003479,2]
[314084810,1707966640191,-5268.39812291,0.0003479,2]
[314084812,1707966640200,-1633.32321733,0.00034799,2]
[314084814,1707966640209,-1633.32321732,0.00034799,2]
[314084816,1707966640219,-1633.32321732,0.00034799,2]
[314084818,1707966640228,-1633.32321732,0.00034799,2]
[314084820,1707966640239,-1633.32321732,0.00034799,2]
[314084822,1707966640249,-1286.46249831,0.000349,2]
[314084824,1707966640258,-1286.46249819,0.000349,2]
[314084826,1707966640267,-199.17329448,0.00034951,3]
[314084828,1707966640277,-5140.96,0.00034969,2]
[314084829,1707966640286,-150.58809,0.00035,2]
[314084830,1707966640295,-260965.0,0.00035,2]
[314084831,1707966640305,-14811.16352296,0.0003509,2]
[314084832,1707966640318,-2888.01,0.00035378,2]
[314084833,1707966640328,-33434.02844941,0.000355,2]
[314084834,1707966640336,-3719.48315268,0.00035551,8]
[314084835,1707966640346,-153.98,0.000356,3]
[314084837,1707966640356,-153.98,0.000356,3]
[314084840,1707966640373,-153.98,0.000356,3]
[314084842,1707966640388,-153.98,0.000356,3]
[314084844,1707966640402,-153.98,0.000356,3]
[314084847,1707966640415,-153.98,0.000356,3]
[314084849,1707966640425,-153.98,0.000356,3]
[314084851,1707966640439,-153.98,0.000356,3]
[314084854,1707966640450,-150.0,0.000356,2]
[314084856,1707966640463,-1633.32321732,0.00035716,2]
[314084858,1707966640476,-5268.39812291,0.00035716,2]
[314084861,1707966640490,-155.0,0.0003574,2]
[314084863,1707966640500,-155.45223205,0.000359,2]
[314084865,1707966640511,-215.81164393,0.000359,2]
[314084868,1707966640524,-156.66385257,0.000359,2]
[314084871,1707966640536,-207.73215334,0.000359,2]
[314084873,1707966640548,-248.52018674,0.000359,2]
[314084875,1707966640560,-308.83014134,0.000359,2]
[314084878,1707966640572,-154.45647894,0.0003591,5]
[314084880,1707966640584,-6027.29674052,0.00035997,2]
[314084882,1707966640597,-3013.64837026,0.00035997,2]
[314084884,1707966640607,-2791.35,0.00035999,2]
[314084887,1707966640618,-3411.65,0.00035999,2]
[314084889,1707966640632,-1030666.24847364,0.00036,3]
[314084892,1707966640644,-2929.84664886,0.00036,2]
[314084894,1707966640656,-838735.25222655,0.00036,2]
[314084897,1707966640673,-839.56,0.00036,7]
[314084901,1707966640696,-327.63,0.00036,7]
[314084903,1707966640710,-23805.0,0.00036131,7]
[314084906,1707966640724,-582.0,0.00036215,2]
[314084908,1707966640738,-332.0,0.0003623,2]
[314084911,1707966640754,-1286.46249819,0.0003631,2]
[314084913,1707966640768,-204.41,0.00036438,2]
[314084916,1707966640783,-2888.01,0.00036442,2]
[314084919,1707966640797,-151.0,0.00036651,4]
[314084921,1707966640811,-341.512,0.00036677,2]
[314084924,1707966640827,-1043.517,0.00036677,2]
[314084926,1707966640838,-327.63,0.000369,7]
[314084928,1707966640848,-719.83,0.00037042,2]
[314084930,1707966640859,-3719.48315268,0.00037088,10]
[314084933,1707966640869,-155.0,0.0003711,2]
[314084935,1707966640884,-1633.32321732,0.00037322,2]
[314084937,1707966640897,-5268.39812291,0.00037322,2]
[314084940,1707966640909,-200.0,0.00037363,2]
[314084942,1707966640924,-151.0,0.00037399,2]
[314084945,1707966640937,-154.6,0.00037443,2]
[314084947,1707966640949,-153.98,0.000377,3]
[314084949,1707966640960,-153.98,0.000377,3]
[314084951,1707966640970,-153.98,0.000377,3]
[314084954,1707966640982,-153.98,0.000377,3]
[314084956,1707966640994,-153.98,0.000377,3]
[314084958,1707966641006,-153.98,0.000377,3]
[314084960,1707966641018,-153.98,0.000377,3]
[314084963,1707966641030,-153.98,0.000377,3]
[314084965,1707966641042,-383.18298145,0.00037741,10]
[314084967,1707966641054,-203.0,0.00037839,2]
[314084970,1707966641066,-201.0,0.00037839,2]
[314084972,1707966641078,-1286.46249819,0.00037889,2]
[314084975,1707966641093,-3013.64837026,0.00037897,2]
[314084977,1707966641105,-189.04780612,0.000379,2]
[314084979,1707966641117,-255.29186212,0.000379,2]
[314084981,1707966641128,-679734.259562,0.000379,3]
[314084984,1707966641139,-2973.449,0.00038165,2]
[314084986,1707966641151,-1377.651,0.00038165,2]
[314084988,1707966641163,-399.738,0.00038165,2]
[314084990,1707966641175,-421.846,0.00038165,2]
[314084993,1707966641186,-217.403,0.00038165,2]
[314084995,1707966641198,-1239.367,0.00038165,2]
[314084997,1707966641210,-1259.424,0.00038165,2]
[314084999,1707966641222,-839.56,0.000382,7]
[314085002,1707966641234,-742.1,0.00038235,2]
[314085004,1707966641244,-16967.0499,0.00038256,2]
[314085006,1707966641255,-516.2007566,0.00038356,7]
[314085008,1707966641267,-412.01477854,0.00038356,7]
[314085010,1707966641278,-500.0,0.00038356,7]
[314085013,1707966641289,-500.0,0.00038356,7]
[314085015,1707966641301,-500.0,0.00038356,7]
[314085017,1707966641313,-294.07564754,0.00038356,7]
[314085019,1707966641325,-373.56967701,0.00038356,7]
[314085021,1707966641336,-500.0,0.00038356,7]
[314085024,1707966641347,-609.10154586,0.00038356,7]
[314085026,1707966641359,-510.07567485,0.00038356,7]
[314085028,1707966641371,-500.0,0.00038356,2]
[314085030,1707966641382,-500.0,0.00038356,2]
[314085032,1707966641394,-500.0,0.00038356,2]
[314085035,1707966641405,-500.0,0.00038356,2]
[314085037,1707966641418,-473.45205268,0.00038356,2]
[314085039,1707966641429,-526.94165787,0.00038356,7]
[314085041,1707966641440,-500.0,0.00038356,7]
[314085044,1707966641452,-168.86447282,0.00038356,7]
[314085046,1707966641463,-500.0,0.00038356,7]
[314085048,1707966641475,-500.0,0.00038356,7]
[314085050,1707966641487,-501.77500733,0.00038356,7]
[314085053,1707966641498,-500.0,0.00038356,7]
[314085055,1707966641509,-513.5583782,0.00038356,7]
[314085057,1707966641520,-500.0,0.00038356,7]
[314085059,1707966641531,-366.58325743,0.00038356,7]
[314085061,1707966641541,-520.66078611,0.00038356,7]
[314085064,1707966641552,-536.05780918,0.00038356,7]
[314085066,1707966641562,-514.98808207,0.00038356,7]
[314085068,1707966641576,-557.62563878,0.00038356,7]
[314085070,1707966641587,-532.97656633,0.00038356,7]
[314085072,1707966641597,-533.26277129,0.00038356,7]
[314085075,1707966641608,-511.99434384,0.00038356,7]
[314085077,1707966641619,-522.21103018,0.00038356,7]
[314085079,1707966641630,-510.76620149,0.00038356,7]
[314085081,1707966641641,-544.70951211,0.00038356,7]
[314085083,1707966641652,-500.0,0.00038356,7]
[314085085,1707966641662,-500.0,0.00038356,7]
[314085088,1707966641673,-500.0,0.00038356,7]
[314085090,1707966641684,-525.30196184,0.00038356,7]
[314085092,1707966641695,-500.0,0.00038356,7]
[314085094,1707966641707,-500.0,0.00038356,7]
[314085097,1707966641718,-500.0,0.00038356,7]
[314085099,1707966641730,-425.57,0.00038356,7]
[314085101,1707966641741,-507.26248214,0.00038356,7]
[314085104,1707966641752,-514.83061348,0.00038356,7]
[314085106,1707966641764,-500.0,0.00038356,7]
[314085108,1707966641776,-500.0,0.00038356,7]
[314085110,1707966641786,-500.0,0.00038356,7]
[314085130,1707966641954,-561.61662551,0.00038356,7]
[314085132,1707966641964,-640.10150303,0.00038356,7]
[314085134,1707966641973,-500.0,0.00038356,7]
[314085136,1707966641982,-500.0,0.00038356,7]
[314085138,1707966641991,-648.10808523,0.00038356,7]
[314085140,1707966642000,-500.0,0.00038356,7]
[314085142,1707966642009,-500.0,0.00038356,7]
[314085144,1707966642017,-500.0,0.00038356,7]
[314085146,1707966642026,-500.0,0.00038356,7]
[314085148,1707966642036,-359.30389226,0.00038356,7]
[314085150,1707966642044,-560.58531934,0.00038356,7]
[314085152,1707966642054,-500.0,0.00038356,7]
[314085154,1707966642063,-553.595843,0.00038356,7]
[314085156,1707966642072,-500.0,0.00038356,7]
[314085158,1707966642081,-500.0,0.00038356,7]
[314085160,1707966642090,-170.68152518,0.00038356,7]
[314085162,1707966642099,-500.0,0.00038356,7]
[314085164,1707966642107,-500.0,0.00038356,7]
[314085166,1707966642117,-234.78,0.00038356,7]
[314085168,1707966642126,-533.78762561,0.00038356,7]
[314085170,1707966642134,-530.86291692,0.00038356,7]
[314085172,1707966642143,-500.0,0.00038356,7]
[314085174,1707966642152,-500.0,0.00038356,7]
[314085176,1707966642160,-527.12384033,0.00038356,7]
[314085178,1707966642169,-513.42858354,0.00038356,7]
[314085180,1707966642178,-519.81650682,0.00038356,7]
[314085181,1707966642187,-529.12303255,0.00038356,7]
[314085184,1707966642196,-526.14456712,0.00038356,7]
[314085186,1707966642205,-500.0,0.00038356,7]
[314085187,1707966642215,-500.0,0.00038356,7]
[314085190,1707966642224,-500.0,0.00038356,7]
[314085191,1707966642233,-528.47567377,0.00038356,7]
[314085194,1707966642242,-266.3285269,0.00038356,7]
[314085196,1707966642252,-500.0,0.00038356,7]
[314085198,1707966642261,-500.0,0.00038356,7]
[314085199,1707966642270,-278.55914818,0.00038356,7]
[314085202,1707966642279,-197.69661819,0.00038356,7]
[314085203,1707966642289,-500.0,0.00038356,7]
[314085205,1707966642300,-511.72117939,0.00038356,7]
[314085208,1707966642311,-500.0,0.00038356,7]
[314085210,1707966642322,-503.32541758,0.00038356,7]
[314085212,1707966642331,-500.0,0.00038356,7]
[314085213,1707966642341,-515.52408951,0.00038356,7]
[314085214,1707966642350,-500.0,0.00038356,7]
[314085215,1707966642359,-500.0,0.00038356,7]
[314085216,1707966642368,-293.81593055,0.00038356,7]
[314085217,1707966642378,-500.0,0.00038356,7]
[314085218,1707966642388,-500.0,0.00038356,7]
[314085219,1707966642397,-412.55822903,0.00038356,7]
[314085220,1707966642407,-500.0,0.00038356,7]
[314085222,1707966642416,-586.16137636,0.00038356,7]
[314085224,1707966642425,-500.0,0.00038356,7]
[314085226,1707966642434,-583.05,0.00038356,7]
[314085228,1707966642443,-517.61200919,0.00038356,7]
[314085230,1707966642452,-518.822548,0.00038356,7]
[314085232,1707966642461,-522.04631991,0.00038356,7]
[314085234,1707966642470,-542.49927847,0.00038356,7]
[314085236,1707966642481,-500.0,0.00038356,7]
[314085239,1707966642491,-500.0,0.00038356,7]
[314085241,1707966642500,-500.0,0.00038356,7]
[314085242,1707966642510,-214.87891955,0.00038356,7]
[314085245,1707966642519,-500.0,0.00038356,7]
[314085247,1707966642529,-500.0,0.00038356,7]
[314085249,1707966642538,-502.9539551,0.00038356,7]
[314085251,1707966642547,-403.08086941,0.00038356,7]
[314085253,1707966642556,-518.48608303,0.00038356,7]
[314085254,1707966642566,-505.69126226,0.00038356,7]
[314085257,1707966642576,-244.08102835,0.00038356,7]
[314085258,1707966642586,-522.3038993,0.00038356,7]
[314085260,1707966642597,-551.24743222,0.00038356,7]
[314085263,1707966642607,-528.92683781,0.00038356,7]
[314085264,1707966642616,-500.0,0.00038356,7]
[314085266,1707966642625,-621.50670025,0.00038356,7]
[314085268,1707966642634,-505.17167283,0.00038356,7]
[314085270,1707966642644,-500.0,0.00038356,7]
[314085272,1707966642653,-500.0,0.00038356,7]
[314085274,1707966642661,-500.0,0.00038356,7]
[314085276,1707966642670,-529.71461591,0.00038356,7]
[314085278,1707966642679,-516.07790513,0.00038356,7]
[314085280,1707966642689,-305.99595124,0.00038356,7]
[314085282,1707966642698,-500.0,0.00038356,2]
[314085284,1707966642707,-602.98371002,0.00038356,2]
[314085286,1707966642716,-505.81673384,0.00038356,7]
[314085288,1707966642725,-525.16476214,0.00038356,7]
[314085290,1707966642734,-507.93612907,0.00038356,7]
[314085292,1707966642743,-584.2987502,0.00038356,7]
[314085294,1707966642752,-503.3753072,0.00038356,7]
[314085296,1707966642761,-513.99335436,0.00038356,7]
[314085298,1707966642770,-510.64894492,0.00038356,7]
[314085300,1707966642779,-517.31852926,0.00038356,7]
[314085302,1707966642788,-500.0,0.00038356,7]
[314085304,1707966642797,-500.0,0.00038356,7]
[314085306,1707966642806,-500.0,0.00038356,7]
[314085308,1707966642815,-359.7798205,0.00038356,7]
[314085311,1707966642825,-492.14944971,0.00038356,7]
[314085314,1707966642834,-500.0,0.00038356,7]
[314085316,1707966642843,-500.0,0.00038356,7]
[314085317,1707966642854,-193.21607964,0.00038356,7]
[314085319,1707966642863,-515.73610636,0.00038356,7]
[314085321,1707966642872,-504.70462892,0.00038356,7]
[314085323,1707966642881,-541.25465651,0.00038356,7]
[314085325,1707966642890,-500.0,0.00038356,7]
[314085327,1707966642899,-500.0,0.00038356,7]
[314085329,1707966642908,-511.74062332,0.00038356,7]
[314085331,1707966642916,-500.0,0.00038356,7]
[314085333,1707966642926,-223.33456629,0.00038356,7]
[314085335,1707966642935,-514.18308753,0.00038356,7]
[314085337,1707966642945,-519.96833958,0.00038356,7]
[314085339,1707966642954,-500.0,0.00038356,7]
[314085341,1707966642963,-520.8161377,0.00038356,7]
[314085344,1707966642972,-611.38543543,0.00038356,7]
[314085346,1707966642981,-500.0,0.00038356,7]
[314085347,1707966642990,-500.0,0.00038356,7]
[314085349,1707966642999,-500.0,0.00038356,7]
[314085353,1707966643008,-387.85866639,0.00038356,7]
[314085354,1707966643017,-500.0,0.00038356,7]
[314085356,1707966643026,-640.71334413,0.00038356,7]
[314085358,1707966643035,-513.68208637,0.00038356,7]
[314085361,1707966643045,-509.0728229,0.00038356,7]
[314085362,1707966643054,-510.91051425,0.00038356,7]
[314085366,1707966643063,-503.17464348,0.00038356,7]
[314085368,1707966643072,-508.61759975,0.00038356,7]
[314085370,1707966643081,-500.0,0.00038356,7]
[314085371,1707966643090,-500.0,0.00038356,7]
[314085373,1707966643099,-641.68532853,0.00038356,7]
[314085375,1707966643108,-500.0,0.00038356,7]
[314085377,1707966643117,-645.52726567,0.00038356,7]
[314085380,1707966643126,-364.03972855,0.00038356,7]
[314085382,1707966643135,-518.57860347,0.00038356,7]
[314085384,1707966643144,-521.05108576,0.00038356,7]
[314085386,1707966643153,-504.39652665,0.00038356,7]
[314085388,1707966643162,-521.38201317,0.00038356,7]
[314085390,1707966643171,-503.76228321,0.00038356,7]
[314085392,1707966643180,-524.10996981,0.00038356,7]
[314085394,1707966643189,-500.0,0.00038356,7]
[314085396,1707966643199,-500.0,0.00038356,7]
[314085398,1707966643208,-500.0,0.00038356,7]
[314085400,1707966643218,-500.0,0.00038356,7]